bitfinex/quotes_SOLUSD_20250903
["timestamp","ask_amount","ask_price","bid_price","bid_amount"]
[1756917813495,4.66786949,210.1,210.06,0.72]
[1756917813679,4.66786949,210.09,210.08,0.72]
[1756917813876,4.66786949,210.09,210.08,0.22]
[1756917815189,4.66786949,210.09,210.05,4.76077124]
[1756917815391,4.66786949,210.08,210.05,4.76077124]
[1756917816192,4.66786949,210.08,210.06,5.48043548]
[1756917816494,4.66786949,210.07,210.05,4.76076029]
[1756917816702,4.66786949,210.06,210.05,5.48076029]
[1756917817005,4.66786949,210.07,210.05,5.48076029]
[1756917818877,4.66786949,210.07,210.06,0.72]
[1756917819097,4.66786949,210.08,210.06,0.72]
[1756917820100,4.66786949,210.08,210.07,4.76031798]
[1756917820489,4.66786949,210.08,210.06,5.4805204]
[1756917820702,36.94,210.1,210.06,5.4805204]
[1756917820890,4.66786949,210.07,210.06,5.4805204]
[1756917821400,4.66786949,210.07,210.04,13.59559401]
[1756917821604,4.66786949,210.05,210.04,13.59559401]
[1756917821905,4.66786949,210.05,210.03,13.59559401]
[1756917822100,0.66,210.07,210.03,13.59559401]
[1756917822101,4.66786949,210.04,210.03,18.35672058]
[1756917822483,4.66786949,210.04,210.03,19.04672058]
[1756917822984,0.67,210.1,210.03,19.04672058]
[1756917823190,4.75895873,210.13,210.07,0.03]
[1756917823191,0.67,210.12,210.07,0.03]
[1756917823381,4.66786949,210.08,210.07,0.72]
[1756917823883,4.66786949,210.1,210.07,0.72]
[1756917824092,4.66786949,210.1,210.08,5.45009139]
[1756917824295,4.66786949,210.09,210.08,13.59559401]
[1756917824511,0.67,210.14,210.08,13.59559401]
[1756917824512,4.66786949,210.1,210.08,13.59559401]
[1756917824716,4.66786949,210.11,210.08,13.59559401]
[1756917824895,4.66786949,210.11,210.09,0.69]
[1756917825098,4.66786949,210.11,210.1,0.69]
[1756917825304,37.63,210.14,210.1,0.69]
[1756917825513,4.66786949,210.11,210.1,0.69]
[1756917826013,4.66786949,210.11,210.1,5.44963826]
[1756917826214,4.66786949,210.12,210.1,0.69]
[1756917826396,4.66786949,210.11,210.09,4.75983791]
[1756917826597,4.66786949,210.11,210.1,0.69]
[1756917827392,0.67,210.15,210.1,0.69]
[1756917827393,4.66786949,210.12,210.1,0.69]
[1756917827699,0.67,210.17,210.11,13.59559401]
[1756917827700,4.66786949,210.14,210.11,13.59559401]
[1756917828008,4.66786949,210.14,210.11,14.28559401]
[1756917828212,4.66786949,210.14,210.12,5.44918522]
[1756917828402,4.66786949,210.14,210.12,4.75918522]
[1756917828807,4.66786949,210.13,210.11,13.59559401]
[1756917829005,4.66786949,210.13,210.11,14.28559401]
[1756917829208,4.66786949,210.12,210.1,14.30581054]
[1756917829604,4.66786949,210.11,210.1,28.59140455]
[1756917829808,4.66786949,210.11,210.1,14.28559401]
[1756917829999,4.66786949,210.11,210.1,18.35523227]
[1756917830812,0.67,210.13,210.1,18.35523227]
[1756917831003,4.66786949,210.11,210.1,19.04523227]
[1756917832128,4.66786949,210.12,210.1,19.04523227]
[1756917832302,4.66786949,210.13,210.11,0.69]
[1756917832820,4.66786949,210.13,210.1,18.35523227]
[1756917833003,4.66786949,210.13,210.1,19.04523227]
[1756917833202,36.96,210.16,210.12,4.75918522]
[1756917833615,4.66786949,210.14,210.12,4.75918522]
[1756917833924,4.66786949,210.13,210.12,4.75918522]
[1756917834312,36.96,210.17,210.12,5.44918522]
[1756917834500,4.66786949,210.16,210.13,0.69]
[1756917834822,4.66786949,210.15,210.12,4.75918522]
[1756917835016,4.66786949,210.15,210.12,5.44918522]
[1756917835327,37.63,210.17,210.12,5.44918522]
[1756917835519,2.99258549,210.15,210.12,5.44918522]
[1756917835927,2.99258549,210.16,210.13,0.69]
[1756917836933,2.99258549,210.16,210.14,0.69]
[1756917837102,2.99258549,210.16,210.12,4.75918522]
[1756917837308,2.99258549,210.16,210.14,4.75873227]
[1756917837509,0.67,210.18,210.14,4.75873227]
[1756917837822,0.67,210.17,210.14,4.75873227]
[1756917838023,2.99258549,210.16,210.14,4.75873227]
[1756917838520,2.99258549,210.15,210.14,4.75873227]
[1756917838908,2.99258549,210.16,210.14,4.75873227]
[1756917839523,2.99258549,210.16,210.13,4.75895873]
[1756917839716,2.99258549,210.16,210.13,5.44895873]
[1756917839916,2.99258549,210.16,210.13,4.75895873]
[1756917840727,2.99258549,210.16,210.13,5.44895873]
[1756917841717,131.5,210.23,210.16,13.59559401]
[1756917841909,0.73,210.25,210.18,13.59559401]
[1756917842110,2.99258549,210.23,210.19,0.69]
[1756917842311,0.73,210.25,210.18,16.5881795]
[1756917842526,2.99258549,210.24,210.2,0.69]
[1756917842735,2.99258549,210.24,210.2,13.59559401]
[1756917842921,0.06,210.25,210.2,13.59559401]
[1756917842922,3.05258549,210.25,210.21,0.69]
[1756917843124,3.05258549,210.25,210.22,0.69]
[1756917844016,0.06,210.25,210.23,4.75669504]
[1756917844215,2.99258549,210.24,210.23,4.75669504]
[1756917844544,2.99258549,210.24,210.21,4.75714761]
[1756917844927,3.66258549,210.24,210.21,4.75714761]
[1756917845243,3.05258549,210.25,210.21,5.44714761]
[1756917845418,0.06,210.25,210.21,5.44714761]
[1756917845736,3.72258549,210.25,210.21,5.44714761]
[1756917846032,0.73,210.25,210.21,5.44714761]
[1756917846240,3.05258549,210.25,210.21,4.75714761]
[1756917846541,0.06,210.25,210.23,13.59559401]
[1756917846744,0.06,210.25,210.24,0.69]
[1756917846938,0.06,210.25,210.23,0.69]
[1756917848039,0.06,210.25,210.24,0.69]
[1756917848422,0.06,210.25,210.24,5.44646879]
[1756917848617,1e-08,210.25,210.24,22.03464829]
[1756917848839,1e-08,210.25,210.24,21.62897143]
[1756917849137,1e-08,210.25,210.24,22.31897143]
[1756917850132,1e-08,210.25,210.24,62.31155692]
[1756917850918,1e-08,210.25,210.24,62.88233317]
[1756917851344,1e-08,210.25,210.24,25.94233317]
[1756917851727,1e-08,210.25,210.24,62.88233317]
[1756917852836,1e-08,210.25,210.24,74.85267513]
[1756917853140,1e-08,210.25,210.24,62.88233317]
[1756917853825,1e-08,210.25,210.24,74.85267513]
[1756917854225,1e-08,210.25,210.24,25.94233317]
[1756917854435,1e-08,210.25,210.24,62.86233317]
[1756917854644,1e-08,210.25,210.24,25.08723378]
[1756917854944,1e-08,210.25,210.24,62.00723378]
[1756917855419,1e-08,210.25,210.24,62.29155692]
[1756917855617,1e-08,210.25,210.24,21.68897143]
[1756917855826,1e-08,210.25,210.24,21.40464829]
[1756917856042,1e-08,210.25,210.24,21.68897143]
[1756917856642,0.69000001,210.25,210.24,21.40464829]
[1756917858138,3.6825855,210.25,210.24,3.05258549]
[1756917858342,0.69000001,210.25,210.19,13.59559401]
[1756917858648,2.99258549,210.23,210.21,13.59559401]
[1756917859246,3.68258549,210.24,210.21,13.59559401]
[1756917860159,1e-08,210.25,210.2,4.75733839]
[1756917860160,2.99258549,210.22,210.2,4.75733839]
[1756917860460,3.68258549,210.21,210.19,4.75756746]
[1756917860643,0.69,210.2,210.19,4.75756746]
[1756917860839,3.68258549,210.2,210.19,4.75756746]
[1756917861148,0.69,210.2,210.19,4.75756746]
[1756917861323,2.99258549,210.21,210.19,4.75756746]
[1756917861519,0.69,210.21,210.19,4.75756746]
[1756917861725,3.68258549,210.21,210.19,4.75756746]
[1756917861944,3.68258549,210.21,210.17,27.89663083]
[1756917861945,0.69,210.21,210.17,27.89663083]
[1756917862124,2.99258549,210.18,210.17,14.30103682]
[1756917862320,0.69,210.18,210.13,16.5881795]
[1756917862524,3.68258549,210.18,210.15,18.35229477]
[1756917862946,0.69,210.18,210.15,18.35229477]
[1756917863155,4.75650749,210.24,210.12,4.75913028]
[1756917863156,3.68258549,210.17,210.12,4.75913028]
[1756917863338,3.68258549,210.17,210.13,13.59559401]
[1756917863339,0.69,210.16,210.13,13.59559401]
[1756917863527,0.69,210.16,210.14,4.75650749]
[1756917863728,3.68258549,210.16,210.14,4.75650749]
[1756917863928,2.99258549,210.16,210.13,13.59559401]
[1756917864140,3.68258549,210.15,210.13,18.35442582]
[1756917864448,2.99258549,210.15,210.13,18.35442582]
[1756917866450,2.99258549,210.16,210.13,18.35442582]
[1756917866748,3.68258549,210.16,210.13,18.35442582]
[1756917866932,2.99258549,210.16,210.13,18.35442582]
[1756917867252,3.68258549,210.16,210.13,18.35442582]
[1756917867623,2.99258549,210.16,210.13,4.75883181]
[1756917867844,2.99258549,210.15,210.13,4.75883181]
[1756917868038,0.69,210.16,210.13,4.75883181]
[1756917868235,2.99258549,210.15,210.13,4.75883181]
[1756917868654,2.99258549,210.15,210.12,4.75918522]
[1756917869029,0.69,210.16,210.12,4.75918522]
[1756917869231,3.68258549,210.16,210.12,4.75918522]
[1756917869439,0.69,210.16,210.12,4.75918522]
[1756917869652,2.99258549,210.15,210.12,4.75918522]
[1756917870151,11.97034196,210.24,210.13,13.59559401]
[1756917870152,4.75676695,210.23,210.13,13.59559401]
[1756917870339,0.69,210.19,210.13,14.28559401]
[1756917870536,2.99258549,210.18,210.13,14.28559401]
[1756917870848,2.99258549,210.17,210.14,4.75873227]
[1756917871351,4.75695146,210.22,210.14,4.75873227]
[1756917871534,2.99258549,210.17,210.14,4.75873227]
[1756917871740,3.68258549,210.17,210.14,4.75873227]
[1756917872152,0.69,210.19,210.14,5.44873227]
[1756917872454,0.69,210.18,210.14,5.44873227]
[1756917872769,2.99258549,210.17,210.14,5.44873227]
[1756917873433,2.99258549,210.16,210.14,4.75873227]
[1756917873637,2.99258549,210.15,210.12,9.51611046]
[1756917873831,2.99258549,210.13,210.12,9.51611046]
[1756917874032,3.68258549,210.14,210.12,4.759159]
[1756917874238,0.69,210.17,210.12,5.449159]
[1756917874452,2.99258549,210.14,210.12,4.759159]
[1756917874657,2.99258549,210.14,210.1,14.28559401]
[1756917874658,2.99258549,210.14,210.11,4.75941173]
[1756917875242,2.99258549,210.12,210.08,14.31559401]
[1756917875446,0.69,210.15,210.09,14.28559401]
[1756917875647,0.69,210.15,210.09,19.04545882]
[1756917875866,2.99258549,210.13,210.09,19.04545882]
[1756917876755,0.69,210.14,210.1,0.69]
[1756917877070,0.69,210.14,210.09,18.35545882]
[1756917877271,2.99258549,210.12,210.09,19.04545882]
[1756917877771,0.69,210.14,210.09,19.04545882]
[1756917877967,2.99258549,210.13,210.09,19.04545882]
[1756917878363,4.75805894,210.17,210.09,19.04545882]
[1756917878685,2.99258549,210.12,210.09,18.35545882]
[1756917878851,41.71760026,210.19,210.09,18.35545882]
[1756917879169,2.99258549,210.11,210.09,18.35545882]
[1756917879377,2.99258549,210.1,210.09,18.35545882]
[1756917879672,0.69,210.12,210.09,18.35545882]
[1756917879867,2.99258549,210.11,210.09,18.35545882]
[1756917880062,2.99258549,210.11,210.08,13.62559401]
[1756917880256,3.68258549,210.12,210.08,14.31559401]
[1756917880464,3.68258549,210.12,210.08,19.07568332]
[1756917880776,2.99258549,210.11,210.09,0.03]
[1756917881657,2.99258549,210.1,210.09,0.03]
[1756917881881,2.99258549,210.11,210.09,0.03]
[1756917882485,2.99258549,210.11,210.09,4.78986481]
[1756917882787,2.99258549,210.15,210.1,0.68]
[1756917882961,26.0,210.17,210.11,13.59559401]
[1756917883169,2.99258549,210.15,210.11,14.27559401]
[1756917883557,0.7,210.17,210.12,0.68]
[1756917883771,2.99258549,210.16,210.13,0.68]
[1756917883976,2.99258549,210.17,210.14,0.68]
[1756917884184,3.69258549,210.17,210.15,4.75850582]
[1756917884765,0.06,210.28,210.15,4.75850582]
[1756917884972,2.99258549,210.22,210.16,17.2681795]
[1756917885170,2.99258549,210.21,210.16,14.27559401]
[1756917885371,0.7,210.23,210.17,0.68]
[1756917885671,2.99258549,210.21,210.17,0.68]
[1756917885870,0.7,210.21,210.17,0.68]
[1756917886069,2.99258549,210.21,210.18,0.68]
[1756917887072,2.99258549,210.22,210.18,0.68]
[1756917887282,3.69258549,210.22,210.19,4.75760026]
[1756917887774,2.99258549,210.21,210.19,4.75760026]
[1756917887989,3.69258549,210.2,210.17,4.758053]
[1756917888671,2.99258549,210.2,210.17,4.758053]
[1756917888997,2.99258549,210.2,210.17,5.438053]
[1756917889397,2.99258549,210.2,210.17,4.758053]
[1756917889698,2.99258549,210.18,210.12,13.59559401]
[1756917889907,2.99258549,210.16,210.13,0.68]
[1756917890109,0.7,210.19,210.14,0.68]
[1756917890290,0.7,210.19,210.12,16.5881795]
[1756917890609,2.99258549,210.18,210.15,0.68]
[1756917890975,2.99258549,210.18,210.16,4.7582794]
[1756917891180,0.7,210.2,210.16,4.7582794]
[1756917891397,2.99258549,210.18,210.16,4.7582794]
[1756917891575,2.99258549,210.19,210.16,5.4382794]
[1756917892304,0.7,210.2,210.16,5.4382794]
[1756917892702,0.7,210.22,210.17,0.68]
[1756917892876,2.99258549,210.2,210.18,4.75782662]
[1756917893076,0.7,210.22,210.18,5.43782662]
[1756917893297,37.06,210.23,210.18,5.43782662]
[1756917893500,2.99258549,210.21,210.18,5.43782662]
[1756917893681,0.7,210.22,210.18,5.43782662]
[1756917894003,2.99258549,210.21,210.18,5.43782662]
[1756917894391,2.99258549,210.21,210.19,0.68]
[1756917894778,37.06,210.23,210.19,0.68]
[1756917895083,2.99258549,210.21,210.17,0.68]
[1756917895401,2.99258549,210.2,210.17,0.68]
[1756917895606,4.67373483,210.2,210.17,0.68]
[1756917896498,4.67373483,210.2,210.18,4.75782662]
[1756917897416,4.67373483,210.2,210.17,4.758053]
[1756917897616,4.67373483,210.19,210.17,4.758053]
[1756917897789,4.67373483,210.18,210.16,4.75824695]
[1756917897988,4.67373483,210.17,210.12,28.57867632]
[1756917898191,4.67373483,210.16,210.12,14.27559401]
[1756917898613,4.67373483,210.16,210.13,0.68]
[1756917899111,4.67373483,210.16,210.13,4.75895873]
[1756917899321,4.67373483,210.16,210.14,4.75854471]
[1756917899813,0.7,210.18,210.14,4.75854471]
[1756917900114,4.67373483,210.16,210.14,4.75854471]
[1756917900408,4.67373483,210.15,210.13,0.03]
[1756917900611,4.67373483,210.14,210.13,0.03]
[1756917901489,0.7,210.16,210.13,0.03]
[1756917901904,4.67373483,210.14,210.13,0.03]
[1756917903106,4.67373483,210.16,210.13,0.71]
[1756917903510,0.7,210.2,210.15,13.59559401]
[1756917903812,0.70000001,210.25,210.19,13.59559401]
[1756917904014,1e-08,210.25,210.2,0.68]
[1756917904311,4.67373483,210.24,210.21,0.68]
[1756917904609,4.67373483,210.23,210.19,14.27559401]
[1756917905013,5.37373483,210.24,210.2,0.68]
[1756917905194,1e-08,210.25,210.2,0.68]
[1756917905395,1e-08,210.25,210.22,4.75692132]
[1756917905703,1e-08,210.25,210.23,13.59559401]
[1756917906016,1e-08,210.25,210.23,14.27559401]
[1756917906512,5.37373483,210.24,210.2,4.75715479]
[1756917906691,4.67373483,210.23,210.2,5.43715479]
[1756917907023,4.67373483,210.22,210.2,18.3527488]
[1756917907187,1e-08,210.25,210.2,18.3527488]
[1756917907188,0.70000001,210.25,210.2,18.3527488]
[1756917907388,4.67373483,210.21,210.19,13.59559401]
[1756917907798,4.67373483,210.21,210.19,18.35316612]
[1756917907997,4.67373483,210.21,210.19,19.03316612]
[1756917908202,4.67373483,210.22,210.19,19.03316612]
[1756917908618,4.67373483,210.22,210.19,18.35316612]
[1756917908818,4.67373483,210.21,210.19,4.75757211]
[1756917909206,4.67373483,210.22,210.19,4.75757211]
[1756917909512,1e-08,210.25,210.21,23.02647645]
[1756917909999,1e-08,210.25,210.22,0.68]
[1756917910395,1e-08,210.25,210.23,0.68]
[1756917910600,1e-08,210.25,210.23,5.35373483]
[1756917910806,1e-08,210.25,210.24,0.68]
[1756917911009,1e-08,210.25,210.23,13.59559401]
[1756917911205,1e-08,210.25,210.23,14.27559401]
[1756917911407,1e-08,210.25,210.23,0.68]
[1756917912314,1e-08,210.25,210.22,13.59559401]
[1756917912315,1e-08,210.25,210.24,4.75646879]
[1756917912514,1e-08,210.25,210.24,19.0120628]
[1756917912731,1e-08,210.25,210.24,23.68579763]
[1756917912912,1e-08,210.25,210.24,19.0120628]
[1756917913103,1e-08,210.25,210.24,23.68579763]
[1756917914419,1e-08,210.25,210.24,23.97012077]
[1756917915432,1e-08,210.25,210.24,28.7038556]
[1756917916222,1e-08,210.25,210.24,23.68579763]
[1756917917095,1e-08,210.25,210.24,19.0120628]
[1756917917300,1e-08,210.25,210.24,23.68579763]
[1756917917509,1e-08,210.25,210.24,23.97012077]
[1756917918814,1e-08,210.25,210.24,25.87619877]
[1756917921098,1e-08,210.25,210.24,62.81619877]
[1756917921512,1e-08,210.25,210.24,58.14246394]
[1756917921718,1e-08,210.25,210.24,62.81619877]
[1756917924219,1e-08,210.25,210.24,25.87619877]
[1756917925416,1e-08,210.25,210.24,62.81619877]
[1756917925619,1e-08,210.25,210.24,62.15619877]
[1756917925917,0.65000001,210.25,210.24,1.906078]
[1756917926119,0.65000001,210.25,210.23,13.59559401]
[1756917926421,0.65,210.24,210.23,13.59559401]
[1756917926734,0.65,210.24,210.23,18.35228905]
[1756917926922,0.65,210.24,210.23,4.75669504]
[1756917927127,0.65,210.24,210.22,6.58008537]
[1756917927445,1e-08,210.25,210.22,1.90635054]
[1756917927616,0.65000001,210.25,210.22,6.58008537]
[1756917927810,0.65000001,210.25,210.22,11.33692367]
[1756917928044,1e-08,210.25,210.23,4.67373483]
[1756917929132,1e-08,210.25,210.24,4.75646879]
[1756917931148,5.32373484,210.25,210.22,6.66307553]
[1756917931346,4.67373483,210.23,210.22,18.352319]
[1756917931648,5.32373483,210.23,210.21,4.75713472]
[1756917932028,4.67373483,210.24,210.21,4.75713472]
[1756917932241,5.32373483,210.24,210.21,4.75713472]
[1756917932542,4.67373484,210.25,210.22,13.59559401]
[1756917932745,1e-08,210.25,210.24,13.59559401]
[1756917932918,1e-08,210.25,210.24,14.25559401]
[1756917933123,1e-08,210.25,210.24,19.0120628]
[1756917934950,1e-08,210.25,210.24,18.3820628]
[1756917935328,1e-08,210.25,210.24,19.0420628]
[1756917935739,1e-08,210.25,210.24,23.05579763]
[1756917935952,1e-08,210.25,210.24,19.0420628]
[1756917936129,1e-08,210.25,210.24,24.00012077]
[1756917936445,1e-08,210.25,210.24,25.90619878]
[1756917936956,1e-08,210.25,210.24,20.28814081]
[1756917937130,4.67373484,210.25,210.24,20.28814081]
[1756917937330,4.67373484,210.25,210.24,18.3820628]
[1756917937662,1e-08,210.25,210.24,18.3820628]
[1756917937957,0.65000001,210.25,210.24,18.3820628]
[1756917938545,1e-08,210.25,210.24,18.3820628]
[1756917939526,1e-08,210.25,210.24,23.70579763]
[1756917939730,1e-08,210.25,210.24,18.3820628]
[1756917940629,4.67373484,210.25,210.24,0.03]
[1756917940937,5.32373484,210.25,210.24,0.03]
[1756917941328,26.0,210.22,210.21,0.03]
[1756917941534,30.67373483,210.22,210.21,0.03]
[1756917941845,30.67373483,210.22,210.19,0.03]
[1756917941846,4.75714761,210.21,210.19,0.03]
[1756917942149,30.67373483,210.2,210.19,0.03]
[1756917942334,67.77373483,210.2,210.19,0.03]
[1756917942530,71.92505459,210.2,210.19,0.03]
[1756917942848,80.15378896,210.2,210.19,0.03]
[1756917943429,80.15427867,210.2,210.19,0.03]
[1756917945236,38.40054384,210.2,210.19,0.03]
[1756917945439,80.15427867,210.2,210.19,0.03]
[1756917945639,43.07427867,210.2,210.19,0.03]
[1756917945838,80.15258191,210.2,210.19,0.03]
[1756917946044,75.47884708,210.2,210.19,0.03]
[1756917946360,80.15258191,210.2,210.19,0.03]
[1756917947354,43.07258191,210.2,210.19,0.03]
[1756917947561,29.49158496,210.2,210.19,0.03]
[1756917947741,71.88531979,210.2,210.19,0.03]
[1756917948542,71.22531979,210.2,210.19,0.03]
[1756917948861,1e-08,210.25,210.19,0.7]
[1756917949064,4.67373483,210.2,210.19,0.7]
[1756917949248,4.67373483,210.2,210.19,0.03]
[1756917949654,5.33373483,210.2,210.19,0.03]
[1756917950259,10.09110875,210.2,210.19,0.03]
[1756917951757,43.06580745,210.2,210.19,0.03]
[1756917952157,39.5784581,210.2,210.19,0.03]
[1756917952559,34.90472327,210.2,210.19,0.03]
[1756917952765,39.5784581,210.2,210.19,0.03]
[1756917953066,41.75373483,210.2,210.19,0.03]
[1756917953556,37.08,210.2,210.19,0.03]
[1756917953767,41.75373483,210.2,210.19,0.03]
[1756917953938,0.06,210.21,210.19,0.7]
[1756917954135,4.73373483,210.21,210.19,0.03]
[1756917954355,4.67373483,210.2,210.19,0.03]
[1756917954853,4.67373483,210.2,210.19,0.7]
[1756917955164,4.73373483,210.21,210.19,0.7]
[1756917955466,4.67373483,210.2,210.19,0.7]
[1756917955654,4.67373483,210.2,210.19,0.03]
[1756917957445,2.99180274,210.2,210.19,0.03]
[1756917957646,2.99180274,210.2,210.16,0.03]
[1756917957647,41.37756122,210.2,210.16,0.03]
[1756917957855,28.99180274,210.17,210.16,0.03]
[1756917958052,35.9601873,210.17,210.16,0.03]
[1756917958251,35.9601873,210.17,210.13,0.03]
[1756917958252,28.99180274,210.14,210.13,0.03]
[1756917958453,66.31180274,210.14,210.13,0.03]
[1756917958649,66.97180274,210.14,210.13,0.03]
[1756917958855,40.97180274,210.14,210.13,0.03]
[1756917959057,3.65180274,210.14,210.13,0.03]
[1756917959343,45.73053501,210.14,210.13,0.03]
[1756917960452,42.73873227,210.14,210.13,0.03]
[1756917960752,45.73053501,210.14,210.13,0.03]
[1756917961158,45.07053501,210.14,210.13,0.03]
[1756917961554,26.0,210.17,210.13,0.7]
[1756917961755,1.90780531,210.18,210.13,0.7]
[1756917961949,2.99180274,210.15,210.14,0.67]
[1756917962361,2.99180274,210.15,210.13,0.03]
[1756917962556,2.99180274,210.14,210.13,0.03]
[1756917963750,7.75053501,210.14,210.13,0.03]
[1756917963973,8.41053501,210.14,210.13,0.03]
[1756917968775,45.03053501,210.14,210.13,0.7]
[1756917968976,45.03053501,210.14,210.13,0.03]
[1756917969157,45.69053501,210.14,210.13,0.03]
[1756917969563,45.03053501,210.14,210.13,0.03]
[1756917972066,26.0,210.14,210.13,0.03]
[1756917972255,40.27180274,210.14,210.13,0.03]
[1756917973257,45.03053501,210.14,210.13,0.03]
[1756917973463,45.71053501,210.14,210.13,0.03]
[1756917973862,42.03873227,210.14,210.13,0.03]
[1756917974068,45.03053501,210.14,210.13,0.03]
[1756917975959,40.27180274,210.14,210.13,0.03]
[1756917976283,45.03053501,210.14,210.13,0.75]
[1756917976474,45.03053501,210.14,210.13,0.03]
[1756917976660,7.75053501,210.14,210.13,0.03]
[1756917976863,45.67053501,210.14,210.13,0.03]
[1756917977169,7.75053501,210.14,210.13,0.03]
[1756917977362,44.99053501,210.14,210.13,0.03]
[1756917978085,7.75053501,210.14,210.13,0.03]
[1756917978272,44.97053501,210.14,210.13,0.03]
[1756917978474,40.21180274,210.14,210.13,0.03]
[1756917978673,44.97053501,210.14,210.13,0.03]
[1756917980185,37.22,210.14,210.13,0.75]
[1756917980485,40.21180274,210.14,210.13,0.75]
[1756917981192,40.21180274,210.14,210.13,0.03]
[1756917981367,44.97053501,210.14,210.13,0.03]
[1756917981788,49.13271579,210.14,210.13,0.03]
[1756917982173,52.61625197,210.14,210.13,0.03]
[1756917982386,51.93625197,210.14,210.13,0.03]
[1756917984494,52.61625197,210.14,210.13,0.03]
[1756917985592,48.94444923,210.14,210.13,0.03]
[1756917985889,51.93625197,210.14,210.13,0.03]
[1756917986103,52.61625197,210.14,210.13,0.03]
[1756917987464,52.62602242,210.14,210.13,0.03]
[1756917988278,64.59323338,210.14,210.13,0.03]
[1756917988481,26.0,210.11,210.1,0.03]
[1756917988670,73.12729015,210.11,210.1,0.03]
[1756917988874,73.80729015,210.11,210.1,0.03]
[1756917989597,78.56670188,210.11,210.1,0.03]
[1756917990097,78.57262483,210.11,210.1,0.03]
[1756917994494,37.74082209,210.11,210.1,0.03]
[1756917994671,77.85262483,210.11,210.1,0.03]
[1756917994882,40.73262483,210.11,210.1,0.03]
[1756917995082,77.85262483,210.11,210.1,0.03]
[1756917996377,78.53262483,210.11,210.1,0.03]
[1756917997600,77.85262483,210.11,210.1,0.03]
[1756917997979,77.85276991,210.11,210.1,0.03]
[1756917998288,78.53276991,210.11,210.1,0.03]
[1756917999086,78.53276991,210.11,210.09,0.03]
[1756917999285,9.97335818,210.1,210.09,0.03]
[1756917999791,10.65335818,210.1,210.09,0.03]
[1756918000892,52.49299644,210.1,210.09,0.03]
[1756918001981,51.81299644,210.1,210.09,0.03]
[1756918006008,52.52299644,210.1,210.09,0.03]
[1756918008223,51.81299644,210.1,210.09,0.03]
[1756918008924,52.52299644,210.1,210.09,0.03]
[1756918009426,51.81299644,210.1,210.09,0.03]
[1756918011919,51.82052266,210.1,210.09,0.03]
[1756918012322,48.82871992,210.1,210.09,0.03]
[1756918012525,51.82052266,210.1,210.09,0.03]
[1756918013527,52.53052266,210.1,210.09,0.03]
[1756918017425,49.53871992,210.1,210.09,0.03]
[1756918017632,54.22031299,210.1,210.09,0.03]
[1756918018010,53.51031299,210.1,210.09,0.03]
[1756918018210,54.22031299,210.1,210.09,0.03]
[1756918018826,54.22988805,210.1,210.09,0.03]
[1756918019131,53.51988805,210.1,210.09,0.03]
[1756918019323,54.22988805,210.1,210.09,0.03]
[1756918022216,6.99865672,210.1,210.09,0.75]
[1756918022410,53.45988805,210.1,210.09,0.75]
[1756918023019,49.96055969,210.1,210.09,0.75]
[1756918023425,45.27896662,210.1,210.09,0.75]
[1756918023634,49.96055969,210.1,210.09,0.75]
[1756918024030,3.49932836,210.1,210.09,0.75]
[1756918024223,49.96055969,210.1,210.09,0.75]
[1756918027544,45.20092143,210.1,210.09,0.75]
[1756918027747,49.96055969,210.1,210.09,0.75]
[1756918028844,50.02055969,210.1,210.09,0.75]
[1756918030153,50.02055969,210.1,210.09,0.03]
[1756918030951,50.73055969,210.1,210.09,0.03]
[1756918032450,46.04896662,210.1,210.09,0.03]
[1756918032750,50.73055969,210.1,210.09,0.03]
[1756918036057,46.04896662,210.1,210.09,0.03]
[1756918036244,50.73055969,210.1,210.09,0.03]
[1756918040542,50.02055969,210.1,210.09,0.03]
[1756918041242,3.55932836,210.1,210.09,0.75]
[1756918041442,71.26092143,210.1,210.09,0.75]
[1756918042036,76.02055969,210.1,210.09,0.75]
[1756918042237,71.26092143,210.1,210.09,0.75]
[1756918042566,67.76159307,210.1,210.09,0.75]
[1756918043061,72.52123133,210.1,210.09,0.75]
[1756918044964,72.52123133,210.1,210.09,0.03]